bitfinex/quotes_BTCUSD_20250812
["timestamp","ask_amount","ask_price","bid_price","bid_amount"]
[1755011997122,0.23921066,119620.0,119610.0,0.69826312]
[1755011997343,0.23921066,119620.0,119610.0,0.99847321]
[1755011997693,0.23921066,119620.0,119610.0,0.97338021]
[1755011999845,0.04883454,119620.0,119610.0,0.97338021]
[1755012000509,0.04883454,119620.0,119610.0,0.97847021]
[1755012000510,0.04180651,119620.0,119610.0,0.97847021]
[1755012000717,0.04180651,119620.0,119610.0,1.00356721]
[1755012001191,0.01680651,119620.0,119610.0,1.00356721]
[1755012001417,0.01478651,119620.0,119610.0,1.00356721]
[1755012001637,0.01478651,119620.0,119610.0,1.02101623]
[1755012002084,0.01478651,119620.0,119610.0,1.72101623]
[1755012002299,0.01478651,119620.0,119610.0,3.59916123]
[1755012002526,0.01478651,119620.0,119610.0,1.72101623]
[1755012002741,0.01478651,119620.0,119610.0,6.02301623]
[1755012003182,0.01478651,119620.0,119610.0,1.02201623]
[1755012003620,0.01478651,119620.0,119610.0,1.02101623]
[1755012003841,0.01478651,119620.0,119610.0,1.02401623]
[1755012005219,0.01478651,119620.0,119610.0,1.02601623]
[1755012005632,0.01478651,119620.0,119610.0,1.72601623]
[1755012006098,0.01478651,119620.0,119610.0,6.72601623]
[1755012007640,0.01478651,119620.0,119610.0,1.72601623]
[1755012007867,0.01478651,119620.0,119610.0,6.72601623]
[1755012009180,0.01478651,119620.0,119610.0,1.72601623]
[1755012009410,0.01478651,119620.0,119610.0,6.72601623]
[1755012010166,0.01478651,119620.0,119610.0,1.16116253]
[1755012010376,0.01478651,119620.0,119610.0,6.72601623]
[1755012010576,0.01478651,119620.0,119610.0,6.16116253]
[1755012010796,0.01478651,119620.0,119610.0,6.72601623]
[1755012012208,0.01478651,119620.0,119610.0,6.99441623]
[1755012020872,0.01478651,119620.0,119610.0,6.42956253]
[1755012021091,0.01478651,119620.0,119610.0,3.68469923]
[1755012028444,0.01478651,119620.0,119610.0,3.11984553]
[1755012028644,0.01478651,119620.0,119610.0,3.68469923]
[1755012034748,0.01478651,119620.0,119610.0,3.54594423]
[1755012034963,0.025,119640.0,119630.0,0.16718214]
[1755012035188,0.02704,119640.0,119630.0,0.94739909]
[1755012035419,0.02704,119640.0,119630.0,0.94743909]
[1755012036201,0.00204,119640.0,119630.0,0.97253109]
[1755012036408,0.33704,119640.0,119630.0,0.97253109]
[1755012036903,0.33924,119640.0,119630.0,0.97253109]
[1755012037578,0.33924,119640.0,119630.0,1.11431409]
[1755012037788,0.33704,119640.0,119630.0,1.11431409]
[1755012038239,0.33704,119640.0,119630.0,1.77431409]
[1755012038440,0.31204,119640.0,119630.0,1.77431409]
[1755012038661,0.33704,119640.0,119630.0,1.77431409]
[1755012038989,0.31204,119640.0,119630.0,1.77431409]
[1755012039200,0.33704,119640.0,119630.0,1.77431409]
[1755012039621,0.33704,119640.0,119630.0,1.63253109]
[1755012039622,0.33924,119640.0,119630.0,1.63253109]
[1755012039833,0.33924,119640.0,119630.0,1.60743909]
[1755012040038,0.33704,119640.0,119630.0,1.63253209]
[1755012041262,0.33704,119640.0,119630.0,0.97253209]
[1755012041896,0.33704,119640.0,119630.0,0.97746209]
[1755012042110,0.33704,119640.0,119630.0,2.14072809]
[1755012042735,0.337,119640.0,119630.0,2.80072809]
[1755012045604,0.337,119640.0,119630.0,2.23587439]
[1755012045821,0.337,119640.0,119630.0,2.80072809]
[1755012046027,0.337,119640.0,119630.0,1.63253209]
[1755012046254,0.337,119640.0,119630.0,1.77341509]
[1755012046666,0.337,119640.0,119630.0,1.74831209]
[1755012047302,0.337,119640.0,119630.0,1.75124209]
[1755012047503,0.337,119640.0,119630.0,1.75324209]
[1755012052654,0.337,119640.0,119630.0,1.18838839]
[1755012052869,0.337,119640.0,119630.0,1.75324209]
[1755012054162,0.337,119640.0,119630.0,1.74736909]
[1755012054816,0.337,119640.0,119630.0,1.24732539]
[1755012055048,0.337,119640.0,119630.0,1.81217909]
[1755012055275,0.337,119640.0,119630.0,1.26407539]
[1755012055488,0.337,119640.0,119630.0,1.81217909]
[1755012056797,0.337,119640.0,119630.0,1.24732539]
[1755012057023,0.337,119640.0,119630.0,1.47010378]
[1755012057240,0.337,119640.0,119630.0,1.89269217]
[1755012057942,0.50416817,119640.0,119630.0,0.38258539]
[1755012058164,0.337,119640.0,119630.0,0.80517378]
[1755012058650,0.337,119640.0,119630.0,0.80810378]
[1755012059439,0.337,119640.0,119630.0,0.81010378]
[1755012060712,0.337,119640.0,119630.0,0.95098227]
[1755012061334,0.33692128,119640.0,119630.0,0.95098227]
[1755012062441,0.335,119640.0,119630.0,0.95098227]
[1755012062868,0.335,119640.0,119630.0,0.38751539]
[1755012063078,0.335,119640.0,119630.0,0.95098227]
[1755012065310,0.335,119640.0,119630.0,0.96773227]
[1755012065524,0.335,119640.0,119630.0,0.95098227]
[1755012067579,0.335,119640.0,119630.0,0.38751539]
[1755012068022,0.335,119640.0,119630.0,0.95098227]
[1755012069593,0.335,119640.0,119630.0,0.38751539]
[1755012069788,0.335,119640.0,119630.0,0.95098227]
[1755012070532,0.335,119640.0,119630.0,0.81834227]
[1755012070755,0.335,119640.0,119630.0,0.95062227]
[1755012071820,0.335,119640.0,119630.0,0.25487539]
[1755012072048,0.335,119640.0,119630.0,0.81834227]
[1755012072274,0.335,119640.0,119630.0,0.95062227]
[1755012073160,0.335,119640.0,119630.0,0.38715539]
[1755012073432,0.335,119640.0,119630.0,0.95062227]
[1755012074239,0.335,119640.0,119630.0,0.38715539]
[1755012074459,0.335,119640.0,119630.0,0.95062227]
[1755012075352,0.335,119640.0,119630.0,0.38715539]
[1755012075553,0.335,119640.0,119630.0,0.95062227]
[1755012076887,0.335,119640.0,119630.0,0.38715539]
[1755012077099,0.335,119640.0,119630.0,0.95062227]
[1755012077968,0.335,119640.0,119630.0,0.38715539]
[1755012078190,0.335,119640.0,119630.0,0.95062227]
[1755012079431,0.335,119640.0,119630.0,0.38715539]
[1755012079618,0.335,119640.0,119630.0,0.95062227]
[1755012079972,0.335,119640.0,119630.0,0.81834227]
[1755012080218,0.335,119640.0,119630.0,0.95054227]
[1755012080890,0.335,119640.0,119630.0,0.81341227]
[1755012080891,0.33698,119640.0,119630.0,0.81341227]
[1755012081165,0.33698,119640.0,119630.0,0.94561227]
[1755012081823,0.33698,119640.0,119630.0,0.38527539]
[1755012082077,0.5080562,119640.0,119630.0,0.08276325]
[1755012082322,1.07366308,119640.0,119630.0,4e-05]
[1755012082495,0.2001962,119640.0,119630.0,0.13224]
[1755012082732,0.6229653,119640.0,119630.0,0.13224]
[1755012083403,0.6239653,119640.0,119630.0,0.13224]
[1755012083616,0.6269653,119640.0,119630.0,0.13224]
[1755012083852,0.2041962,119640.0,119630.0,0.5550091]
[1755012084262,0.2041962,119640.0,119630.0,0.13224]
[1755012084995,0.2031962,119640.0,119630.0,0.13224]
[1755012085661,0.2051962,119640.0,119630.0,0.13224]
[1755012085877,0.2030562,119640.0,119630.0,0.73086693]
[1755012086092,0.2030562,119640.0,119630.0,0.86302693]
[1755012086520,0.2030562,119640.0,119630.0,4e-05]
[1755012086723,0.76884099,119640.0,119630.0,4e-05]
[1755012086975,0.79212099,119640.0,119630.0,4e-05]
[1755012088581,0.19609017,119630.0,119620.0,0.13216]
[1755012088850,0.20022017,119630.0,119620.0,0.21488325]
[1755012089797,0.20222017,119630.0,119620.0,0.21488325]
[1755012090216,0.20322017,119630.0,119620.0,0.21488325]
[1755012091353,0.20108017,119630.0,119620.0,0.21488325]
[1755012093574,0.20322017,119630.0,119620.0,0.21488325]
[1755012093773,0.20108017,119630.0,119620.0,0.21488325]
[1755012094366,0.20108017,119630.0,119620.0,0.38207937]
[1755012094786,0.03389803,119630.0,119620.0,0.38207937]
[1755012095003,0.03190803,119630.0,119620.0,0.95089416]
[1755012095218,0.19909017,119630.0,119620.0,0.95085416]
[1755012095697,0.03190803,119630.0,119620.0,0.95085416]
[1755012095911,0.19909017,119630.0,119620.0,0.95085416]
[1755012099353,0.19909017,119630.0,119620.0,0.38720937]
[1755012099576,0.19909017,119630.0,119620.0,0.95085416]
[1755012099827,0.19909017,119630.0,119620.0,0.38203937]
[1755012100317,0.19909017,119630.0,119620.0,0.38522937]
[1755012100530,0.03190803,119630.0,119620.0,0.38726937]
[1755012100760,0.03190803,119630.0,119620.0,0.95091416]
[1755012101700,0.028,119630.0,119620.0,0.95091416]
[1755012101920,0.003,119630.0,119620.0,1.56789416]
[1755012102998,0.028,119630.0,119620.0,1.56789416]
[1755012103244,0.003,119630.0,119620.0,1.56789416]
[1755012103705,0.028,119630.0,119620.0,1.56789416]
[1755012104183,0.003,119630.0,119620.0,1.56789416]
[1755012104829,0.003,119630.0,119620.0,1.59298716]
[1755012105881,0.313,119630.0,119620.0,1.59298716]
[1755012106089,0.338,119630.0,119620.0,1.59290716]
[1755012106300,0.313,119630.0,119620.0,1.59290716]
[1755012108293,0.311,119630.0,119620.0,1.59290716]
[1755012108525,0.336,119630.0,119620.0,1.46086716]
[1755012108756,0.336,119630.0,119620.0,1.26803016]
[1755012110102,0.336,119630.0,119620.0,1.28478016]
[1755012110314,0.311,119630.0,119620.0,1.26803016]
[1755012111916,0.311,119630.0,119620.0,1.84912397]
[1755012112125,0.001,119630.0,119620.0,1.98547918]
[1755012112333,0.001,119630.0,119620.0,2.54912397]
[1755012112524,0.001,119630.0,119620.0,2.57021594]
[1755012112721,0.00096,119630.0,119620.0,2.57025594]
[1755012112994,0.0002,119650.0,119640.0,0.16716817]
[1755012113209,0.00068783,119650.0,119640.0,4.302756]
[1755012113638,0.00068783,119650.0,119640.0,4.305946]
[1755012113850,0.00068783,119650.0,119640.0,4.063182]
[1755012114299,0.00068783,119650.0,119640.0,4.08827]
[1755012115830,0.00168783,119650.0,119640.0,4.08827]
[1755012116076,0.00168783,119650.0,119640.0,2.96098042]
[1755012116284,0.00168783,119650.0,119640.0,4.08827]
[1755012117819,0.00168783,119650.0,119640.0,4.08831]
[1755012118839,0.00168783,119650.0,119640.0,4.10575902]
[1755012119066,0.00168783,119650.0,119640.0,3.94871102]
[1755012119296,0.00168783,119650.0,119640.0,4.10567602]
[1755012119578,0.00168783,119650.0,119640.0,3.97379602]
[1755012119803,0.00168783,119650.0,119640.0,4.10567602]
[1755012120051,0.00168783,119650.0,119640.0,3.06707844]
[1755012120271,0.00168783,119650.0,119640.0,3.06345102]
[1755012120496,0.00168783,119650.0,119640.0,2.93157102]
[1755012120731,0.00068783,119650.0,119640.0,2.88785702]
[1755012120961,0.00068783,119650.0,119640.0,1.69571323]
[1755012121189,0.00266783,119650.0,119640.0,1.75367121]
[1755012121425,0.02766783,119650.0,119640.0,1.18479642]
[1755012121650,0.02766783,119650.0,119640.0,1.74244121]
[1755012121867,0.02766783,119650.0,119640.0,1.75167121]
[1755012122090,0.02568783,119650.0,119640.0,2.317316]
[1755012122302,0.02568783,119650.0,119640.0,2.313316]
[1755012122515,0.02568783,119650.0,119640.0,2.311316]
[1755012122745,0.02568783,119650.0,119640.0,1.661316]
[1755012123201,0.00068783,119650.0,119640.0,1.67876502]
[1755012123418,0.02568783,119650.0,119640.0,1.67876502]
[1755012123631,0.02668783,119650.0,119640.0,0.55147544]
[1755012123849,0.02668783,119650.0,119640.0,1.67876502]
[1755012124075,0.02668783,119650.0,119640.0,0.55147544]
[1755012124306,0.00068783,119650.0,119640.0,2.32976502]
[1755012124538,0.02568783,119650.0,119640.0,1.20147544]
[1755012124766,0.00068783,119650.0,119640.0,2.32876502]
[1755012124996,0.00068783,119650.0,119640.0,2.33176502]
[1755012125225,0.02568783,119650.0,119640.0,2.32876502]
[1755012125684,0.00068783,119650.0,119640.0,2.32976502]
[1755012125928,0.00068783,119650.0,119640.0,2.37976502]
[1755012127081,0.00068783,119650.0,119640.0,2.37876502]
[1755012127298,7e-05,119660.0,119650.0,0.748248]
[1755012127525,1e-08,119660.0,119650.0,7.25261801]
[1755012127743,1e-08,119660.0,119650.0,7.45265801]
[1755012129008,1e-08,119660.0,119650.0,7.45765801]
[1755012129223,1e-08,119660.0,119650.0,7.32581801]
[1755012129462,1e-08,119660.0,119650.0,7.46065801]
[1755012134957,1e-08,119660.0,119650.0,7.47738801]
[1755012135196,1e-08,119660.0,119650.0,7.46065801]
[1755012135419,1e-08,119660.0,119650.0,7.48565801]
[1755012136532,0.00604803,119710.0,119700.0,0.16708437]
[1755012136533,0.00214,119710.0,119700.0,0.16708437]
[1755012136765,0.03101803,119720.0,119710.0,0.16707042]
[1755012136979,0.02711,119720.0,119710.0,0.94523846]
[1755012137197,0.02923627,119720.0,119710.0,0.94523846]
[1755012137418,0.19629273,119720.0,119710.0,0.81343846]
[1755012137674,0.05423627,119720.0,119710.0,0.96971994]
[1755012137897,0.02923627,119720.0,119710.0,0.97821156]
[1755012138360,0.19629273,119720.0,119710.0,0.97821156]
[1755012138577,0.19829273,119720.0,119710.0,0.81114114]
[1755012138843,0.22329273,119720.0,119710.0,0.84641156]
[1755012139062,0.22329273,119720.0,119710.0,0.97821156]
[1755012139279,0.19829273,119720.0,119710.0,0.81114114]
[1755012139497,0.21829273,119720.0,119710.0,0.81114114]
[1755012139717,0.22129273,119720.0,119710.0,0.81114114]
[1755012139932,0.21929273,119720.0,119710.0,0.81114114]
[1755012140165,0.2192092,119720.0,119710.0,0.81114114]
[1755012140364,0.2202092,119720.0,119710.0,0.81114114]
[1755012140833,0.2192092,119720.0,119710.0,0.81114114]
[1755012141051,0.2192092,119720.0,119710.0,0.24749635]
[1755012141277,0.22700223,119720.0,119710.0,0.81114114]
[1755012141551,0.22900223,119720.0,119710.0,0.81114114]
[1755012141783,0.22900223,119720.0,119710.0,0.67934114]
[1755012142020,0.23291026,119720.0,119710.0,0.81114114]
[1755012142249,0.23291026,119720.0,119710.0,0.81118114]
[1755012143091,0.23291026,119720.0,119710.0,0.24753635]
[1755012143309,0.23291026,119720.0,119710.0,0.08276325]
[1755012143516,0.23291026,119720.0,119710.0,0.21456325]
[1755012143953,0.23291026,119720.0,119710.0,0.22274713]
[1755012144169,0.2329108,119720.0,119710.0,0.78639192]
[1755012146960,0.23291337,119720.0,119710.0,0.78635192]
[1755012147171,0.23291337,119720.0,119710.0,0.22270713]
[1755012147317,0.23291337,119720.0,119710.0,0.78635192]
[1755012148183,0.23291337,119720.0,119710.0,0.22270713]
[1755012149252,0.23291337,119720.0,119710.0,0.21452325]
[1755012149907,0.2329194,119720.0,119710.0,0.21452325]
[1755012151179,0.2329194,119720.0,119710.0,0.22276457]
[1755012151667,0.2329194,119720.0,119710.0,0.78640936]
[1755012151853,0.2329194,119720.0,119710.0,0.77816804]
[1755012152105,0.2329194,119720.0,119710.0,0.08276325]
[1755012152315,0.2329194,119720.0,119710.0,0.1318]
[1755012152968,0.23292517,119720.0,119710.0,0.1318]
[1755012153852,0.23292517,119720.0,119710.0,4e-05]
[1755012154070,0.23292517,119720.0,119710.0,0.1318]
[1755012154541,0.06586871,119720.0,119710.0,0.29887042]
[1755012154755,0.01686224,119720.0,119710.0,0.95030846]
[1755012154975,0.01295421,119720.0,119710.0,0.95030846]
[1755012155418,0.01686224,119720.0,119710.0,0.95030846]
[1755012155660,0.01687093,119720.0,119710.0,0.95030846]
[1755012156608,0.0129629,119720.0,119710.0,0.95030846]
[1755012156817,0.00514627,119720.0,119710.0,0.95030846]
[1755012157030,0.00514627,119720.0,119710.0,0.84362346]
[1755012157209,0.00514627,119720.0,119710.0,0.97538346]
[1755012159503,0.03014627,119720.0,119710.0,0.97538346]
[1755012159904,0.00514627,119720.0,119710.0,0.97538346]
[1755012160118,0.03014627,119720.0,119710.0,0.97538346]
[1755012161457,0.03014627,119720.0,119710.0,1.53902825]
[1755012161676,0.03014627,119720.0,119710.0,0.97538346]
[1755012162350,0.03014627,119720.0,119710.0,2.20399846]
[1755012163231,0.00514627,119720.0,119710.0,2.20399846]
[1755012163470,0.03014627,119720.0,119710.0,2.20399846]
[1755012164242,0.03014627,119720.0,119710.0,1.64035367]
[1755012164517,0.03014627,119720.0,119710.0,2.20399846]
[1755012164946,0.03014627,119720.0,119710.0,2.76764325]
[1755012165178,0.03014627,119720.0,119710.0,2.20399846]
[1755012165398,0.03014627,119720.0,119710.0,0.67045767]
[1755012165626,0.03014627,119720.0,119710.0,1.23410246]
[1755012166288,0.03014627,119720.0,119710.0,1.79774725]
[1755012166431,0.03014627,119720.0,119710.0,1.23410246]
[1755012166681,0.03014627,119720.0,119710.0,1.81519627]
[1755012166886,0.02814627,119720.0,119710.0,1.81519627]
[1755012167926,0.02514627,119720.0,119710.0,2.47519627]
[1755012168766,0.00014627,119720.0,119710.0,1.91155148]
[1755012168971,0.02514627,119720.0,119710.0,1.91155148]
[1755012169418,0.02514627,119720.0,119710.0,2.47519627]
[1755012170776,0.02514627,119720.0,119710.0,1.91155148]
[1755012171397,0.00014627,119720.0,119710.0,1.91155148]
[1755012171614,0.02514627,119720.0,119710.0,1.91155148]
[1755012172055,0.02514627,119720.0,119710.0,2.57155148]
[1755012172268,0.02514627,119720.0,119710.0,1.91155148]
[1755012172454,0.02514627,119720.0,119710.0,2.47519627]
[1755012172684,0.02510627,119720.0,119710.0,2.47519627]
[1755012174008,0.02510627,119720.0,119710.0,1.91155148]
[1755012174866,0.00010627,119720.0,119710.0,2.47519627]
[1755012175078,0.02510627,119720.0,119710.0,2.47519627]
[1755012175982,0.02510627,119720.0,119710.0,1.91155148]
[1755012176203,0.00010627,119720.0,119710.0,1.91155148]
[1755012176407,0.02510627,119720.0,119710.0,1.91155148]
[1755012176620,0.00010627,119720.0,119710.0,1.91155148]
[1755012176829,0.02510627,119720.0,119710.0,1.91155148]
[1755012177603,0.02510627,119720.0,119710.0,1.91147148]
[1755012180287,0.02708627,119720.0,119710.0,1.79177846]
[1755012180503,0.02708627,119720.0,119710.0,1.18669867]
[1755012180716,0.02708627,119720.0,119710.0,1.61870346]
[1755012180932,0.02708627,119720.0,119710.0,1.75034346]
[1755012181154,0.02510627,119720.0,119710.0,1.75034346]
[1755012181697,0.02510627,119720.0,119710.0,2.33143727]
[1755012182129,0.00010627,119720.0,119710.0,2.35651027]
[1755012182351,0.02510627,119720.0,119710.0,2.35651027]
[1755012182559,0.00010627,119720.0,119710.0,2.35651027]
[1755012183002,0.02510627,119720.0,119710.0,2.35651027]
[1755012183237,0.00010627,119720.0,119710.0,2.92015506]
[1755012183455,0.0002,119730.0,119720.0,0.18450548]
[1755012183745,0.0002,119730.0,119720.0,5.0297415]
[1755012183928,0.0002,119730.0,119720.0,4.0519575]
[1755012185051,0.0002,119730.0,119720.0,4.0539575]
[1755012187093,0.0002,119730.0,119720.0,4.0559575]
[1755012187960,0.0002,119730.0,119720.0,2.4489305]
[1755012188412,0.0002,119730.0,119720.0,3.2197305]
[1755012188841,0.0002,119730.0,119720.0,3.2177305]
[1755012189065,0.0002,119730.0,119720.0,3.2187305]
[1755012189290,0.0002,119730.0,119720.0,3.2166905]
[1755012189510,0.3229965,119740.0,119730.0,0.74813632]
[1755012189732,0.3229965,119740.0,119730.0,4.06256257]
[1755012190215,0.3229965,119740.0,119730.0,3.96233257]
[1755012190403,0.3229965,119740.0,119730.0,3.94488355]
[1755012190620,0.3229965,119740.0,119730.0,3.96233257]
[1755012190850,0.3229965,119740.0,119730.0,3.96333257]
[1755012191194,0.3229965,119740.0,119730.0,3.96433257]
[1755012191879,0.3249765,119740.0,119730.0,2.93056357]
[1755012192115,0.3249765,119740.0,119730.0,2.19945457]
[1755012192351,0.3229965,119740.0,119730.0,2.20474457]
[1755012192572,0.3249765,119740.0,119730.0,2.20474457]
[1755012192791,0.3229965,119740.0,119730.0,2.20474457]
[1755012194146,0.3229965,119740.0,119730.0,1.64109978]
[1755012194348,0.3229965,119740.0,119730.0,2.20474457]
[1755012194798,0.3229965,119740.0,119730.0,1.64109978]
[1755012195034,0.3229965,119740.0,119730.0,2.20474457]
[1755012195281,0.3229965,119740.0,119730.0,2.22147457]
[1755012195492,0.3229965,119740.0,119730.0,2.20474457]
[1755012197449,0.0129965,119740.0,119730.0,2.20474457]
[1755012197662,0.0129965,119740.0,119730.0,2.76838936]
[1755012198074,0.025,119760.0,119750.0,0.18446363]
[1755012198282,0.02514621,119760.0,119750.0,5.38953846]
[1755012198491,0.02514621,119760.0,119750.0,2.68369188]
[1755012198698,0.02514621,119760.0,119750.0,3.81098146]
[1755012199171,0.02514621,119760.0,119750.0,4.51098146]
[1755012199379,0.02514621,119760.0,119750.0,4.51198146]
[1755012200185,0.02514621,119760.0,119750.0,4.51298146]
[1755012201621,0.02514621,119760.0,119750.0,4.53804446]
[1755012202039,0.02514621,119760.0,119750.0,3.97439967]
[1755012202247,0.02514621,119760.0,119750.0,4.55913643]
[1755012203375,0.00014621,119760.0,119750.0,4.55913643]
[1755012203601,0.02514621,119760.0,119750.0,4.55909643]
[1755012203815,0.02514621,119760.0,119750.0,3.99545164]
[1755012204033,0.00014621,119760.0,119750.0,3.99545164]
[1755012204248,0.02514621,119760.0,119750.0,3.97435967]
[1755012204455,1e-08,119760.0,119750.0,4.55909643]
[1755012205356,1e-08,119760.0,119750.0,4.55809643]
[1755012205767,1e-08,119760.0,119750.0,4.56005643]
[1755012205979,1e-08,119760.0,119750.0,3.99641164]
[1755012206393,1e-08,119760.0,119750.0,4.56005643]
[1755012206721,0.0002,119770.0,119760.0,0.16700066]
[1755012206911,0.04265002,119780.0,119770.0,0.90552771]
[1755012206912,0.00745235,119780.0,119770.0,0.90552771]
[1755012207123,0.00793962,119780.0,119770.0,6.18539575]
[1755012207353,0.00793962,119780.0,119770.0,5.83609378]
[1755012207574,0.00793962,119780.0,119770.0,5.8866137]
[1755012207778,0.00793962,119780.0,119770.0,6.2184537]
[1755012207995,0.00793962,119780.0,119770.0,6.8784537]
[1755012208847,0.00991962,119780.0,119770.0,6.8784537]
[1755012209285,0.00991962,119780.0,119770.0,6.7470137]
[1755012209700,0.00991962,119780.0,119770.0,6.7500137]
[1755012209907,0.00991962,119780.0,119770.0,6.8814137]
[1755012210114,0.00793962,119780.0,119770.0,6.8814137]
[1755012210361,0.01091962,119780.0,119770.0,6.7500137]
[1755012210579,0.01091962,119780.0,119770.0,6.8814137]
[1755012210789,0.31893962,119780.0,119770.0,6.8814137]
[1755012211012,0.00893962,119780.0,119770.0,6.8814137]
[1755012211943,0.335,119790.0,119780.0,0.92883316]
[1755012212145,0.33698,119790.0,119780.0,6.2813952]
[1755012212367,0.33698,119790.0,119780.0,5.94188622]
[1755012212573,0.335,119790.0,119780.0,5.94188622]
[1755012213629,0.335,119790.0,119780.0,4.93430022]
[1755012214247,0.31,119790.0,119780.0,4.83009222]
[1755012214461,0.335,119790.0,119780.0,4.83009222]
[1755012215085,0.31,119790.0,119780.0,4.25879122]
[1755012215294,0.335,119790.0,119780.0,4.25879122]
[1755012215494,0.335,119790.0,119780.0,4.06701322]
[1755012215864,0.31,119790.0,119780.0,4.63065801]
[1755012216071,0.50320069,119800.0,119790.0,0.18440786]
[1755012216329,0.53032678,119800.0,119790.0,4.3000399]
[1755012216540,0.53032678,119800.0,119790.0,2.6764699]
[1755012216738,0.53032678,119800.0,119790.0,2.3021209]
[1755012217107,0.50532678,119800.0,119790.0,2.3021209]
[1755012217320,0.53032678,119800.0,119790.0,2.3271769]
[1755012217526,0.53132678,119800.0,119790.0,2.3271769]
[1755012218555,0.53232678,119800.0,119790.0,2.3271769]
[1755012219335,0.53232678,119800.0,119790.0,2.3301569]
[1755012220756,0.50732678,119800.0,119790.0,2.3301569]
[1755012220972,0.53232678,119800.0,119790.0,2.3301569]
[1755012221182,0.53232678,119800.0,119790.0,2.3321369]
[1755012222732,0.53232678,119800.0,119790.0,2.3271369]
[1755012222948,0.53232678,119800.0,119790.0,2.0357159]
[1755012223398,0.53232678,119800.0,119790.0,1.47207111]
[1755012223575,0.50732678,119800.0,119790.0,2.0357159]
[1755012223737,0.53232678,119800.0,119790.0,2.0357159]
[1755012225270,0.53232678,119800.0,119790.0,1.9043959]
[1755012225479,0.53232678,119800.0,119790.0,2.0386559]
[1755012225735,0.53232678,119800.0,119790.0,2.0406359]
[1755012225976,0.50534678,119800.0,119790.0,2.60428069]
[1755012226578,0.53034678,119800.0,119790.0,2.60428069]
[1755012226801,0.50534678,119800.0,119790.0,2.60428069]
[1755012227006,0.53034678,119800.0,119790.0,2.60428069]
[1755012228001,0.50434678,119800.0,119790.0,2.60428069]
[1755012228187,0.52934678,119800.0,119790.0,2.60428069]
[1755012228400,0.52934678,119800.0,119790.0,2.0406359]
[1755012228608,0.50434678,119800.0,119790.0,2.0406359]
[1755012229046,0.52934678,119800.0,119790.0,2.0406359]
[1755012229265,0.50434678,119800.0,119790.0,2.0406359]
[1755012229474,0.52834678,119800.0,119790.0,2.0406359]
[1755012230530,0.52834678,119800.0,119790.0,2.60428069]
[1755012230949,0.50334678,119800.0,119790.0,2.60428069]
[1755012231152,0.52834678,119800.0,119790.0,1.9093559]
[1755012231383,0.53040678,119800.0,119790.0,1.9043959]
[1755012231598,0.53040678,119800.0,119790.0,2.0356359]
[1755012232280,0.52834678,119800.0,119790.0,2.60424069]
[1755012233170,0.52934678,119800.0,119790.0,2.0405959]
[1755012233404,0.52934678,119800.0,119790.0,2.60424069]
[1755012234240,0.53034678,119800.0,119790.0,2.60424069]
[1755012235027,0.53034678,119800.0,119790.0,2.58679167]
[1755012237234,0.53034678,119800.0,119790.0,1.45950209]
[1755012237450,0.53034678,119800.0,119790.0,2.58679167]
[1755012238072,0.53034678,119800.0,119790.0,1.45950209]
[1755012238294,0.53034678,119800.0,119790.0,1.89190688]
[1755012238519,0.53232678,119800.0,119790.0,2.01814688]
[1755012238734,0.53232678,119800.0,119790.0,2.02310688]
[1755012238952,0.53034678,119800.0,119790.0,2.02310688]
[1755012239164,0.53034678,119800.0,119790.0,1.45946209]
[1755012239382,0.53034678,119800.0,119790.0,1.84982388]
[1755012239616,0.53232678,119800.0,119790.0,1.95596788]
[1755012239827,0.69927168,119800.0,119790.0,1.95596788]
[1755012240047,0.53232678,119800.0,119790.0,1.95596788]
[1755012240257,0.69927168,119800.0,119790.0,1.82476788]
[1755012240479,0.69927168,119800.0,119790.0,1.04088209]
[1755012240750,0.70141168,119800.0,119790.0,1.60452688]
[1755012240982,0.69927168,119800.0,119790.0,1.60452688]
[1755012241193,0.69927168,119800.0,119790.0,1.04088209]
[1755012241646,0.69927168,119800.0,119790.0,1.60452688]
[1755012241868,0.53034678,119800.0,119790.0,1.04286209]
[1755012242090,0.53034678,119800.0,119790.0,1.60948688]
[1755012242523,0.69927168,119800.0,119790.0,1.05487562]
[1755012242754,0.69927168,119800.0,119790.0,1.61360041]
[1755012242984,0.53232678,119800.0,119790.0,1.61360041]
[1755012243228,0.53034678,119800.0,119790.0,0.95856041]
[1755012243473,0.53240678,119800.0,119790.0,0.95364041]
[1755012243904,0.69935168,119800.0,119790.0,0.82176041]
[1755012244126,0.69935168,119800.0,119790.0,0.95364041]
[1755012244346,0.69935168,119800.0,119790.0,0.38991562]
[1755012244614,0.53240678,119800.0,119790.0,0.95356041]
[1755012245061,0.53034678,119800.0,119790.0,1.63852041]
[1755012245690,0.53237678,119800.0,119790.0,1.63852041]
[1755012245917,0.53237678,119800.0,119790.0,1.50176041]
[1755012246134,0.53237678,119800.0,119790.0,1.63360041]
[1755012246358,0.84237678,119800.0,119790.0,1.50176041]
[1755012246579,1.00932168,119800.0,119790.0,0.95352041]
[1755012247017,1.00932168,119800.0,119790.0,0.38987562]
[1755012247282,0.69932168,119800.0,119790.0,0.95348041]
[1755012247705,0.69932168,119800.0,119790.0,0.38983562]
[1755012247950,0.69932168,119800.0,119790.0,0.95348041]
[1755012248188,0.70531971,119800.0,119790.0,0.21448325]
[1755012248902,0.70431971,119800.0,119790.0,0.77812804]
[1755012249557,0.70331971,119800.0,119790.0,0.77812804]
[1755012249774,0.70122971,119800.0,119790.0,0.64640804]
[1755012249990,0.70422971,119800.0,119790.0,0.77808804]
[1755012250437,0.70622971,119800.0,119790.0,0.77808804]
[1755012252103,0.70622971,119800.0,119790.0,0.21444325]
[1755012252312,0.70832971,119800.0,119790.0,0.77808804]
[1755012252604,0.70622971,119800.0,119790.0,0.77800804]
[1755012253015,0.70622971,119800.0,119790.0,0.21436325]
[1755012253236,0.70622971,119800.0,119790.0,0.77800804]
[1755012254131,1.2719745,119800.0,119790.0,0.08276325]
[1755012254348,0.70832971,119800.0,119790.0,0.21428325]
[1755012255022,0.70632971,119800.0,119790.0,0.21428325]
[1755012255274,0.72979971,119800.0,119790.0,0.21428325]
[1755012255499,0.73279971,119800.0,119790.0,0.21428325]
[1755012256652,0.72979971,119800.0,119790.0,0.21428325]
[1755012257073,0.73379971,119800.0,119790.0,0.21428325]
[1755012257255,0.73379971,119800.0,119790.0,0.08276325]
[1755012257468,0.73379971,119800.0,119790.0,0.21416325]
[1755012262578,1.45681586,119800.0,119790.0,4e-05]
[1755012262785,2.02046065,119800.0,119790.0,4e-05]
[1755012263210,2.04552865,119800.0,119790.0,4e-05]
[1755012263431,0.19582687,119790.0,119780.0,0.76186038]
[1755012263663,0.33125687,119790.0,119780.0,0.76186038]
[1755012263900,0.97738609,119790.0,119780.0,0.76186038]
[1755012264506,0.89490166,119790.0,119780.0,0.76186038]